fUSD/lending_fUSD_20260106
["ID","MTS","AMOUNT","RATE_DAILY","PERIOD"]
[400493001,1767663040295,-500.0,0.00017997,2]
[400493002,1767663040304,-91987.9603722,0.00017998,2]
[400493003,1767663040321,-2447.2067791,0.00017998,2]
[400493004,1767663040330,-17957.8994107,0.00017998,2]
[400493005,1767663040343,-1456.23739561,0.00017999,5]
[400493006,1767663040352,-256.02745646,0.00017999,2]
[400493007,1767663040361,-500.0,0.00017999,2]
[400493008,1767663040371,-500.0,0.00017999,2]
[400493009,1767663040380,-500.0,0.00017999,2]
[400493010,1767663040389,-500.0,0.00017999,2]
[400493011,1767663040398,-500.0,0.00017999,2]
[400493012,1767663040407,-500.0,0.00017999,2]
[400493013,1767663040416,-637.77545808,0.00017999,2]
[400493014,1767663040427,-1603250.07575361,0.00018,2]
[400493015,1767663040444,-1926.28810023,0.00018,2]
[400493016,1767663040455,-766.43818676,0.00018,2]
[400493017,1767663040467,-470.0,0.00018,2]
[400493019,1767663040677,-9862.76920398,0.00018,2]
[400493020,1767663040690,-25863.84168929,0.00018,2]
[400493021,1767663040702,-2054.98497725,0.00018,2]
[400493022,1767663040714,-16957.25349034,0.00018,2]
[400493023,1767663040725,-2602.99277642,0.00018,2]
[400493024,1767663040741,-1685.2929534,0.00018,2]
[400493025,1767663040754,-8904.92513306,0.00018,2]
[400493026,1767663040766,-1434.6,0.00018,2]
[400493027,1767663040843,518.82297662,0.00032876,120]
[400493028,1767663040855,-716.31878415,0.00018,2]
[400493029,1767663040867,-942.938007,0.00018,2]
[400493030,1767663040879,-79295.1585923,0.00018,2]
[400493031,1767663040890,-296.9,0.00018,2]
[400493032,1767663040973,573.60300158,0.00032876,120]
[400493033,1767663041055,259.4538963,0.00032876,120]
[400493034,1767663041542,311.96886951,0.00032876,120]
[400493049,1767663043059,500.0,0.00032876,120]
[400493050,1767663043341,300.97745112,0.00032876,120]
[400493051,1767663043439,579.16602039,0.00032876,120]
[400493054,1767663043755,313.97977389,0.00032876,120]
[400493055,1767663044150,-151.0,0.00017157,2]
[400493056,1767663044161,-151.0,0.00017157,2]
[400493057,1767663044169,-573.3,0.00017802,2]
[400493058,1767663044292,-480.71211999,0.00017802,2]
[400493059,1767663044340,-475.61436168,0.00017802,2]
[400493061,1767663045918,205.80629484,0.00032876,120]
[400493070,1767663046091,-1280.3099978,0.00017802,2]
[400493071,1767663046106,-4526.95868699,0.00017802,2]
[400493074,1767663046129,-125.37548966,0.00017802,2]
[400493075,1767663046138,-343.59951034,0.000179,2]
[400493076,1767663046181,-571.24255407,0.000179,2]
[400493077,1767663046190,-8805.45080771,0.00018,2]
[400493080,1767663053350,164.00051788,0.00032876,120]
[400493081,1767663053692,385.76935035,0.00032876,120]
[400493082,1767663056703,335.30040458,0.00032876,120]
[400493083,1767663056825,259.34436426,0.00032876,120]
[400493084,1767663059238,339.31686674,0.00032876,120]
[400493085,1767663064562,323.82959797,0.00032876,120]
[400493086,1767663065264,435.24477112,0.00032876,120]
[400493088,1767663071071,321.66828552,0.00032876,120]
[400493089,1767663072773,285.17347846,0.00032876,120]
[400493090,1767663075084,225.91295834,0.00032876,120]
[400493091,1767663075162,340.53051133,0.00032876,120]
[400493092,1767663075402,331.73481241,0.00032876,120]
[400493093,1767663076081,233.86392884,0.00032876,120]
[400493094,1767663076490,405.97656372,0.00032876,120]
[400493095,1767663081691,516.32996041,0.00032876,120]
[400493096,1767663082661,171.70594863,0.00032876,120]
[400493097,1767663083248,318.48157197,0.00032876,120]
[400493098,1767663084646,500.0,0.00032876,120]
[400493099,1767663084883,179.9319555,0.00032876,120]
[400493100,1767663084960,176.83912209,0.00032876,120]
[400493101,1767663085046,311.16572121,0.00032876,120]
[400493102,1767663087515,640.00768806,0.00032876,120]
[400493103,1767663090172,525.16640951,0.00032876,120]
[400493104,1767663091974,523.87593922,0.00032876,120]
[400493105,1767663093152,534.31304771,0.00032876,120]
[400493106,1767663095420,517.5015019,0.00032876,120]
[400493107,1767663096611,369.5247622,0.00032876,120]
[400493108,1767663100667,512.5687523,0.00032876,120]
[400493109,1767663100903,426.54193543,0.00032876,120]
[400493110,1767663101067,313.58140916,0.00032876,120]
[400493111,1767663101710,522.71225539,0.00032876,120]
[400493112,1767663104239,319.47610448,0.00032876,120]
[400493113,1767663104817,447.7665,0.00032876,120]
[400493114,1767663105050,168.75271151,0.00032876,120]
[400493117,1767663117132,427.01610658,0.00032876,120]
[400493118,1767663121154,321.64576024,0.00032876,120]
[400493119,1767663123464,534.73342329,0.00032876,120]
[400493121,1767663127456,318.36943491,0.00032876,120]
[400493122,1767663129338,229.38575875,0.00032876,120]
[400493123,1767663131303,191.19336846,0.00032876,120]
[400493124,1767663131592,545.1885367,0.00032876,120]
[400493125,1767663131999,172.48928111,0.00032876,120]
[400493126,1767663133576,306.90822535,0.00032876,120]
[400493127,1767663133650,552.6159493,0.00032876,120]
[400493128,1767663134266,246.23445218,0.00032876,120]
[400493129,1767663134831,521.63361592,0.00032876,120]
[400493130,1767663135015,500.0,0.00032876,120]
[400493131,1767663135250,500.0,0.00032876,120]
[400493132,1767663135506,619.03686892,0.00032876,120]
[400493133,1767663136171,181.16256144,0.00032876,120]
[400493134,1767663137413,243.3262314,0.00032876,120]
[400493136,1767663137975,500.0,0.00032876,120]
[400493138,1767663138042,226.24481308,0.00032876,120]
[400493139,1767663138205,438.33367591,0.00032876,120]
[400493140,1767663139475,429.54101967,0.00032876,120]
[400493142,1767663142037,309.99085247,0.00032876,120]
[400493143,1767663145340,500.0,0.00032876,120]
[400493144,1767663145674,472.89113189,0.00032876,120]
[400493145,1767663146079,500.0,0.00032876,120]
[400493146,1767663146197,198.29006452,0.00032876,120]
[400493147,1767663146438,514.32594566,0.00032876,120]
[400493148,1767663147607,500.0,0.00032876,120]
[400493149,1767663147741,319.57956533,0.00032876,120]
[400493150,1767663147859,506.78662925,0.00032876,120]
[400493152,1767663149149,312.42500127,0.00032876,120]
[400493153,1767663149292,298.48570865,0.00032876,120]
[400493154,1767663152838,418.50748265,0.00032876,120]
[400493155,1767663154902,324.47044441,0.00032876,120]
[400493156,1767663155658,160.09129138,0.00032876,120]
[400493157,1767663158301,187.94446392,0.00032876,120]
[400493159,1767663159813,385.63907925,0.00032876,120]
[400493160,1767663160204,213.64270444,0.00032876,120]
[400493161,1767663160649,476.9787459,0.00032876,120]
[400493162,1767663161457,500.0,0.00032876,120]
[400493163,1767663161713,529.02002914,0.00032876,120]
[400493164,1767663165810,230.48545574,0.00032876,120]
[400493165,1767663165949,500.0,0.00032876,120]
[400493166,1767663166219,556.71327032,0.00032876,120]
[400493167,1767663166293,500.0,0.00032876,120]
[400493168,1767663166524,556.86384504,0.00032876,120]
[400493169,1767663170379,302.38934464,0.00032876,120]
[400493172,1767663182303,156.89659953,0.00032876,120]
[400493173,1767663183148,500.0,0.00032876,120]
[400493174,1767663183415,414.44062326,0.00032876,120]
[400493178,1767663186417,168.8686679,0.00032876,120]
[400493179,1767663186910,179.01602849,0.00032876,120]
[400493180,1767663189079,500.0,0.00032876,120]
[400493181,1767663189400,500.0,0.00032876,120]
[400493182,1767663189471,500.0,0.00032876,120]
[400493183,1767663189718,530.2468997,0.00032876,120]
[400493184,1767663189849,514.56206196,0.00032876,120]
[400493185,1767663191678,232.02912442,0.00032876,120]
[400493186,1767663191889,162.89815073,0.00032876,120]
[400493187,1767663192640,500.0,0.00032876,120]
[400493188,1767663192980,500.0,0.00032876,120]
[400493189,1767663193322,195.93268651,0.00032876,120]
[400493190,1767663193393,437.98141381,0.00032876,120]
[400493191,1767663194253,500.0,0.00032876,120]
[400493192,1767663194589,500.0,0.00032876,120]
[400493193,1767663194962,465.30959048,0.00032876,120]
[400493195,1767663197193,16132.5594129,0.00032876,120]
[400493196,1767663198062,192.27984284,0.00032876,120]
[400493197,1767663198372,500.0,0.00032876,120]
[400493198,1767663198471,500.0,0.00032876,120]
[400493199,1767663198546,500.0,0.00032876,120]
[400493200,1767663198613,546.33755273,0.00032876,120]
[400493201,1767663198808,528.80059079,0.00032876,120]
[400493202,1767663198874,505.50240621,0.00032876,120]
[400493206,1767663205029,500.0,0.00032876,120]
[400493207,1767663205292,305.38649231,0.00032876,120]
[400493208,1767663206473,500.0,0.00032876,120]
[400493209,1767663206813,513.70615106,0.00032876,120]
[400493210,1767663206981,196.77950877,0.00032876,120]
[400493211,1767663208177,288.32084008,0.00032876,120]
[400493212,1767663210756,345.3583939,0.00032876,120]
[400493213,1767663212387,229.95268262,0.00032876,120]
[400493214,1767663212864,367.76993377,0.00032876,120]
[400493215,1767663214061,174.65081697,0.00032876,120]
[400493217,1767663215814,476.43507058,0.00032876,120]
[400493218,1767663216599,540.50490454,0.00032876,120]
[400493219,1767663216861,426.35166467,0.00032876,120]
[400493220,1767663218725,619.18568423,0.00032876,120]
[400493221,1767663223009,151.12698826,0.00032876,120]
[400493222,1767663224303,500.0,0.00032876,120]
[400493223,1767663224458,166.12465496,0.00032876,120]
[400493224,1767663224542,500.0,0.00032876,120]
[400493225,1767663224630,519.82218532,0.00032876,120]
[400493226,1767663224769,500.0,0.00032876,120]
[400493227,1767663225022,500.0,0.00032876,120]
[400493228,1767663225585,500.0,0.00032876,120]
[400493229,1767663225827,500.0,0.00032876,120]
[400493230,1767663226048,500.0,0.00032876,120]
[400493231,1767663226302,500.0,0.00032876,120]
[400493232,1767663226572,500.0,0.00032876,120]
[400493233,1767663226834,500.0,0.00032876,120]
[400493234,1767663227077,500.0,0.00032876,120]
[400493235,1767663227336,500.0,0.00032876,120]
[400493236,1767663227587,500.0,0.00032876,120]
[400493237,1767663227746,500.0,0.00032876,120]
[400493238,1767663227818,526.94181168,0.00032876,120]
[400493239,1767663228076,518.2010832,0.00032876,120]
[400493240,1767663228619,500.0,0.00032876,120]
[400493241,1767663228911,500.0,0.00032876,120]
[400493242,1767663229297,528.71395015,0.00032876,120]
[400493243,1767663229627,210.37265382,0.00032876,120]
[400493244,1767663232114,349.70589932,0.00032876,120]
[400493245,1767663236530,214.26645411,0.00032876,120]
[400493246,1767663236892,500.0,0.00032876,120]
[400493247,1767663237274,513.92948575,0.00032876,120]
[400493248,1767663241312,165.29318325,0.00032876,120]
[400493249,1767663242846,625.7005873,0.00032876,120]
[400493250,1767663243797,500.0,0.00032876,120]
[400493251,1767663244138,500.0,0.00032876,120]
[400493252,1767663244462,242.39043777,0.00032876,120]
[400493253,1767663272136,501.02804395,0.00032876,120]
[400493254,1767663274406,178.08041721,0.00032876,120]
[400493255,1767663281689,500.0,0.00032876,120]
[400493256,1767663281965,252.92340653,0.00032876,120]
[400493257,1767663284872,166.9,0.00032877,120]
[400493258,1767663296638,558.26360093,0.00032876,120]
[400493260,1767663318032,190.575582,0.00032876,120]
[400493261,1767663319161,500.0,0.00032876,120]
[400493262,1767663319496,500.0,0.00032876,120]
[400493263,1767663319829,504.70961225,0.00032876,120]
[400493265,1767663352001,500.0,0.00032876,120]
[400493266,1767663352271,500.0,0.00032876,120]
[400493267,1767663352707,627.97273451,0.00032876,120]
[400493268,1767663390071,309.35757882,0.00032876,120]
[400493269,1767663393284,624.69008161,0.00032876,120]
[400493270,1767663398909,500.0,0.00032876,120]
[400493271,1767663399220,500.0,0.00032876,120]
[400493272,1767663399547,275.12295676,0.00032876,120]
[400493273,1767663402448,500.0,0.00032876,120]
[400493274,1767663402782,522.1326584,0.00032876,120]
[400493275,1767663406825,500.0,0.00032876,120]
[400493276,1767663407064,500.0,0.00032876,120]
[400493277,1767663407302,534.29784824,0.00032876,120]
[400493278,1767663409510,501.90902258,0.00032877,120]
[400493279,1767663467466,156.40899805,0.00032876,120]
[400493280,1767663499005,154.60102676,0.00032876,120]
[400493281,1767663499072,500.0,0.00032876,120]
[400493282,1767663499403,500.0,0.00032876,120]
[400493283,1767663499732,512.23864353,0.00032876,120]
[400493284,1767663505085,500.0,0.00032876,120]
[400493285,1767663505429,500.0,0.00032876,120]
[400493286,1767663505761,536.24868914,0.00032876,120]
[400493287,1767663513719,500.0,0.00032876,120]
[400493288,1767663514202,500.0,0.00032876,120]
[400493289,1767663514520,515.40982806,0.00032876,120]
[400493290,1767663544665,500.0,0.00032876,120]
[400493291,1767663544993,520.99731735,0.00032876,120]
[400493292,1767663567670,500.0,0.00032876,120]
[400493293,1767663567990,500.0,0.00032876,120]
[400493294,1767663568306,517.92787608,0.00032876,120]
[400493297,1767663611487,500.0,0.00032876,120]
[400493298,1767663611804,500.0,0.00032876,120]
[400493299,1767663612130,513.77705728,0.00032876,120]
[400493300,1767663644060,500.0,0.00032876,120]
[400493301,1767663644398,530.71235021,0.00032876,120]
[400493302,1767663648077,211.79950635,0.00032876,120]
[400493313,1767663669635,439.06108992,0.00032876,120]
[400493314,1767663684779,609.54397175,0.00032876,120]
[400493315,1767663699245,500.0,0.00032876,120]
[400493316,1767663699591,339.31383142,0.00032876,120]
[400493317,1767663714520,578.4,0.00013699,2]
[400493318,1767663730641,500.0,0.00032876,120]
[400493319,1767663730947,519.1996042,0.00032876,120]
[400493320,1767663733877,158.30157116,0.00032876,120]
[400493321,1767663739029,500.0,0.00032876,120]
[400493322,1767663739276,508.77008503,0.00032876,120]
[400493323,1767663741545,500.0,0.00032876,120]
[400493324,1767663741802,500.0,0.00032876,120]
[400493325,1767663747119,500.0,0.00032876,120]
[400493326,1767663747370,642.85581676,0.00032876,120]
[400493327,1767663919567,500.0,0.00032876,120]
[400493328,1767663919884,500.0,0.00032876,120]
[400493329,1767663923756,500.0,0.00032876,120]
[400493330,1767663924145,187.38192422,0.00032876,120]
[400493331,1767663939395,500.0,0.00032876,120]
[400493332,1767663939750,500.0,0.00032876,120]
[400493333,1767663985166,500.0,0.00032876,120]
[400493334,1767663985484,500.0,0.00032876,120]
[400493335,1767664000029,500.0,0.00032876,120]
[400493336,1767664000357,500.0,0.00032876,120]
[400493337,1767664025540,200.0,0.00016469,2]
[400493338,1767664026190,207.4,0.00016469,2]
[400493339,1767664026462,430.31295286,0.00032876,120]
[400493340,1767664026777,215.0738,0.00016469,2]
[400493341,1767664027386,223.0315306,0.00016469,2]
[400493342,1767664028027,231.28369723,0.00016469,2]
[400493343,1767664028667,239.84119403,0.00016469,2]
[400493344,1767664029290,248.71531821,0.00016469,2]
[400493345,1767664029901,257.91778498,0.00016469,2]
[400493346,1767664030389,151.44578466,0.00016469,2]
[400493347,1767664030531,267.46074303,0.00016469,2]
[400493348,1767664031116,-1000.0,0.00016721,2]
[400493349,1767664031137,-38.79735707,0.00016724,2]
[400493350,1767664057439,166.66,0.00015856,2]
[400493351,1767664057630,166.66,0.00016189,2]
[400493355,1767664232306,-166.66,0.00016523,2]
[400493356,1767664232316,-302.67771243,0.00016602,2]
[400493357,1767664232326,-113.98228757,0.00016681,2]
[400493358,1767664232356,-290.63771243,0.00016681,2]
[400493359,1767664232365,-212.80779058,0.00016683,5]
[400493360,1767664232375,-261.20264293,0.00016724,2]
[400493361,1767664232384,-60.94818506,0.00016728,2]
[400493362,1767664232396,-111.44607849,0.00016728,2]
[400493363,1767664232406,-1200.0,0.0001677,2]
[400493364,1767664232415,-1200.0,0.00016771,2]
[400493365,1767664232426,-300.0,0.00016771,2]
[400493366,1767664232435,-277.0,0.00016771,2]
[400493368,1767664232445,-300.0,0.00016771,2]
[400493370,1767664232457,-460.90333591,0.00016772,2]
[400493372,1767664232469,-1095.14892138,0.00016772,2]
[400493374,1767664232480,-477.49208952,0.00016772,2]
[400493376,1767664232491,-1916.93521517,0.00016772,2]
[400493379,1767664232506,-3826.79043802,0.00016772,2]
[400493381,1767664232516,-166.66,0.00016857,2]
[400493383,1767664232526,-500.0,0.00016899,2]
[400493385,1767664232535,-500.0,0.00016921,2]
[400493387,1767664232544,-6376.74863359,0.00016986,2]
[400493389,1767664232555,-871.14161176,0.00016986,2]
[400493393,1767664232578,-890.8106282,0.00016986,2]
[400493399,1767664238137,-547.5100799,0.00016986,2]
[400493400,1767664238149,-47092.76904655,0.00016986,2]
[400493401,1767664238159,-153.57622234,0.0001699,2]
[400493402,1767664238169,-277.35679052,0.0001699,2]
[400493403,1767664238179,-550.0,0.00016999,2]
[400493404,1767664238190,-250.0,0.00017,2]
[400493405,1767664238201,-150.99,0.00017,2]
[400493406,1767664238213,-9999.99,0.00017,2]
[400493407,1767664238223,-5800.95,0.00017,2]
[400493408,1767664238235,-150.99,0.00017,2]
[400493409,1767664238244,-2365.86,0.00017,2]
[400493410,1767664238254,-5370.42,0.00017,2]
[400493411,1767664238264,-294.54635146,0.00017124,2]
[400493412,1767664238274,-500.0,0.00017151,2]
[400493413,1767664238284,-166.66,0.00017191,2]
[400493414,1767664238293,-202.0,0.0001724,2]
[400493415,1767664238303,-202.0,0.00017281,2]
[400493416,1767664238313,-151.43,0.00017289,2]
[400493417,1767664238322,-1000.0,0.00017348,2]
[400493418,1767664238332,-202.0,0.00017365,2]
[400493419,1767664238341,-183.44,0.000175,2]
[400493420,1767664238351,-173.73,0.000175,2]
[400493421,1767664238360,-404.62,0.00017515,2]
[400493422,1767664238371,-166.66,0.00017525,2]
[400493423,1767664238381,-500.0,0.00017573,2]
[400493424,1767664238391,-350.48753114,0.00017573,2]
[400493425,1767664238401,-500.0,0.00017573,2]
[400493426,1767664238411,-503.52117386,0.00017573,2]
[400493427,1767664238420,-500.0,0.00017573,2]
[400493428,1767664238429,-500.0,0.00017573,2]
[400493429,1767664238439,-202.0,0.00017622,2]
[400493430,1767664238449,-202.0,0.00017636,2]
[400493431,1767664238460,-4782.09791051,0.0001764,2]
[400493433,1767664238470,-500.0,0.00017671,2]
[400493435,1767664238480,-4555.0777368,0.000177,2]
[400493437,1767664238489,-202.0,0.00017701,2]
[400493438,1767664238499,-300.0,0.00017702,2]
[400493440,1767664238508,-500.0,0.00017708,2]
[400493442,1767664238517,-300.0,0.00017708,2]
[400493444,1767664238527,-300.0,0.00017713,2]
[400493446,1767664238537,-300.0,0.00017719,2]
[400493448,1767664238547,-300.0,0.0001772,2]
[400493450,1767664238556,-300.0,0.00017721,2]
[400493452,1767664238565,-300.0,0.00017727,2]
[400493455,1767664238575,-300.0,0.00017728,2]
[400493456,1767664238585,-300.0,0.00017736,2]
[400493458,1767664238594,-300.0,0.00017759,2]
[400493460,1767664238603,-300.0,0.0001777,2]
[400493462,1767664238612,-300.0,0.00017777,2]
[400493466,1767664238624,-300.0,0.00017778,2]
[400493468,1767664238634,-300.0,0.00017787,2]
[400493470,1767664238644,-500.0,0.00017789,2]
[400493472,1767664238653,-322.39572367,0.00017789,2]
[400493474,1767664238662,-500.0,0.00017789,2]
[400493476,1767664238672,-351.36426871,0.00017789,2]
[400493478,1767664238682,-300.0,0.0001779,2]
[400493480,1767664238691,-300.0,0.0001779,2]
[400493482,1767664238700,-300.0,0.00017792,2]
[400493484,1767664238713,-300.0,0.00017795,2]
[400493486,1767664238723,-300.0,0.00017796,2]
[400493488,1767664238732,-7408.61413934,0.000178,2]
[400493490,1767664238741,-2500.0,0.000178,2]
[400493492,1767664238750,-6764.50073749,0.000178,2]
[400493493,1767664238760,-300.0,0.00017803,2]
[400493496,1767664238770,-300.0,0.00017809,2]
[400493497,1767664238779,-300.0,0.0001781,2]
[400493500,1767664238790,-7408.61413932,0.00017811,2]
[400493501,1767664238800,-6764.50073745,0.00017811,2]
[400493503,1767664238809,-300.0,0.00017816,2]
[400493505,1767664238820,-300.0,0.00017818,2]
[400493507,1767664238829,-191.26036,0.0001782,2]
[400493509,1767664238838,-191.26037,0.0001782,2]
[400493511,1767664238848,-7408.61413932,0.00017822,2]
[400493513,1767664238858,-6764.50073745,0.00017822,2]
[400493515,1767664238869,-300.0,0.00017826,2]
[400493517,1767664238879,-300.0,0.00017829,2]
[400493520,1767664238890,-749.4662188,0.0001783,2]
[400493522,1767664238900,-191.26037,0.0001783,2]
[400493524,1767664238909,-300.0,0.00017833,2]
[400493526,1767664238918,-300.0,0.00017833,2]
[400493528,1767664238928,-7408.61413932,0.00017833,2]
[400493530,1767664238938,-6764.50073745,0.00017833,2]
[400493532,1767664238948,-300.0,0.00017838,2]
[400493534,1767664238959,-7408.61413932,0.00017844,2]
[400493535,1767664238968,-6764.50073745,0.00017844,2]
[400493537,1767664238978,-300.0,0.0001785,2]
[400493539,1767664238988,-300.0,0.00017855,2]
[400493542,1767664238998,-7408.61413932,0.00017856,2]
[400493544,1767664239008,-6764.50073745,0.00017856,2]
[400493546,1767664239018,-300.0,0.00017857,2]
[400493548,1767664239028,-191.26037,0.0001786,2]
[400493550,1767664239037,-300.0,0.00017861,2]
[400493552,1767664239047,-300.0,0.00017862,2]
[400493553,1767664239055,-300.0,0.00017865,2]
[400493555,1767664239065,-300.0,0.00017866,2]
[400493558,1767664239075,-7408.61413932,0.00017867,2]
[400493560,1767664239089,-6764.50073745,0.00017867,2]
[400493562,1767664239099,-300.0,0.00017869,2]
[400493563,1767664239108,-300.0,0.0001787,2]
[400493565,1767664239118,-300.0,0.00017874,2]
[400493567,1767664239129,-7408.61413932,0.00017878,2]
[400493569,1767664239138,-6764.50073745,0.00017878,2]
[400493571,1767664239148,-300.0,0.00017878,2]
[400493573,1767664239157,-191.26036,0.0001788,2]
[400493575,1767664239167,-300.0,0.00017881,2]
[400493576,1767664239177,-300.0,0.00017882,2]
[400493578,1767664239187,-7408.61413932,0.00017889,2]
[400493580,1767664239196,-6764.50073745,0.00017889,2]
[400493582,1767664239206,-300.0,0.00017891,2]
[400493584,1767664239216,-300.0,0.00017895,2]
[400493587,1767664239226,-300.0,0.00017898,2]
[400493589,1767664239235,-293.56367081,0.00017899,2]
[400493591,1767664239244,-500.0,0.00017899,2]
[400493593,1767664239253,-500.0,0.00017899,2]
[400493595,1767664239262,-324.69157117,0.00017899,2]
[400493597,1767664239271,-323.02976965,0.00017899,2]
[400493599,1767664239280,-500.0,0.00017899,2]
[400493600,1767664239289,-450.54429945,0.00017899,2]
[400493602,1767664239299,-268.76932914,0.00017899,2]
[400493604,1767664239307,-33569.5495,0.000179,2]
[400493606,1767664239317,-7408.61413932,0.000179,2]
[400493608,1767664239326,-298.31721101,0.000179,2]
[400493610,1767664239335,-6764.50073745,0.000179,2]
[400493612,1767664239344,-1157.43050102,0.000179,2]
[400493614,1767664239353,-918.32931215,0.000179,2]
[400493616,1767664239362,-300.0,0.00017907,2]
[400493618,1767664239371,-300.0,0.00017909,2]
[400493620,1767664239380,-191.26037,0.0001791,2]
[400493622,1767664239390,-300.0,0.00017924,2]
[400493624,1767664239399,-300.0,0.00017935,2]
[400493626,1767664239408,-300.0,0.00017938,2]
[400493628,1767664239418,-669.0,0.00017938,2]
[400493630,1767664239427,-202.0,0.00017939,2]
[400493632,1767664239436,-300.0,0.00017941,2]
[400493634,1767664239445,-300.0,0.00017945,2]
[400493637,1767664239455,-300.0,0.00017948,2]
[400493638,1767664239466,-300.0,0.00017954,2]
[400493641,1767664239475,-300.0,0.00017961,2]
[400493643,1767664239485,-300.0,0.00017962,2]
[400493645,1767664239494,-300.0,0.00017964,2]
[400493647,1767664239504,-770.82279925,0.0001797,2]
[400493649,1767664239513,-300.0,0.00017972,2]
[400493651,1767664239523,-506.65163513,0.00017973,2]
[400493653,1767664239531,-150.0,0.00017973,2]
[400493655,1767664239540,-150.0,0.00017973,2]
[400493657,1767664239549,-1000.0,0.00017975,2]
[400493659,1767664239558,-500.0,0.00017982,2]
[400493661,1767664239568,-152.38329665,0.00017982,2]
[400493663,1767664239578,-600.48752458,0.0001799,2]
[400493664,1767664239587,-600.48752458,0.0001799,2]
[400493666,1767664239597,-600.48752458,0.0001799,2]
[400493668,1767664239606,-500.0,0.00017998,2]
[400493670,1767664239614,-1467.66845712,0.00017999,5]
[400493696,1767664239836,-88422.7813366,0.00017999,2]
[400493698,1767664239845,-2481.5959655,0.00017999,2]
[400493700,1767664239856,-3111.3661666,0.00017999,2]
[400493702,1767664239866,-19722.4914858,0.00017999,2]
[400493704,1767664239875,-500.0,0.00017999,2]
[400493706,1767664239884,-500.0,0.00017999,2]
[400493708,1767664239893,-500.0,0.00017999,2]
[400493710,1767664239903,-500.0,0.00017999,2]
[400493712,1767664239911,-500.0,0.00017999,2]
[400493713,1767664239920,-500.0,0.00017999,2]
[400493715,1767664239930,-500.0,0.00017999,2]
[400493718,1767664239939,-159.63267947,0.00017999,2]
[400493720,1767664239948,-323.23631266,0.00017999,2]
[400493722,1767664239957,-1306780.95927872,0.00018,2]
[400493724,1767664239966,-163716.25073839,0.00018,2]
[400493727,1767664239988,-873.39,0.00018,2]
[400493729,1767664239999,-171625.51675056,0.00018,2]
[400493731,1767664240009,-4081.51319785,0.00018,2]
[400493732,1767664240020,-538.18878031,0.00018,2]
[400493733,1767664240034,-919.38,0.00018,2]
[400493734,1767664240045,-7023.19331204,0.00018,2]
[400493735,1767664240060,-5741.35441,0.00018,2]
[400493736,1767664240071,-7271.78413664,0.00018,2]
[400493737,1767664240083,-4822.09275685,0.00018,2]
[400493738,1767664240094,-318.24795797,0.00018,2]
[400493754,1767664240288,-274.88448164,0.000179,2]
[400493756,1767664240298,-8737.50751288,0.00018,2]
[400493759,1767664240313,-2401.670724,0.00018,2]
[400493765,1767664240362,-1240150.42976697,0.00018,2]
[400493767,1767664240371,-1187.72537298,0.00018,2]
[400493769,1767664240380,-3448.32901296,0.00018,2]
[400493771,1767664240390,-150.0,0.00018,2]
[400493773,1767664240402,-150.621,0.00018,2]
[400493775,1767664240411,-150.0,0.00018,2]
[400493777,1767664240421,-5800.0,0.00018,2]